[Event "Early-Titled-Tuesday-Blitz-March-05-2024"]
[Site "Chess.com"]
[Date "2024.03.05"]
[Round "6"]
[White "MikeSailer"]
[Black "KVAIDAN"]
[Result "1-0"]
[WhiteElo "2191"]
[BlackElo "2318"]
[TimeControl "180+1"]
[EndTime "9:10:45 PST"]
[Termination "MikeSailer won by resignation"]

1. d4 {[%clk 0:02:59.7]} 1... e6 {[%clk 0:03:00]} 2. Nf3 {[%clk 0:03:00.2]} 2...
f5 {[%clk 0:02:59.4]} 3. g3 {[%clk 0:02:57.2]} 3... Nf6 {[%clk 0:02:59.7]} 4.
Bg2 {[%clk 0:02:57.8]} 4... d6 {[%clk 0:02:59.9]} 5. b3 {[%clk 0:02:58.3]} 5...
Be7 {[%clk 0:03:00.5]} 6. Bb2 {[%clk 0:02:58.9]} 6... O-O {[%clk 0:03:00.4]} 7.
Nbd2 {[%clk 0:02:59.5]} 7... Qe8 {[%clk 0:02:59.2]} 8. e3 {[%clk 0:02:56]} 8...
Qh5 {[%clk 0:02:59]} 9. Qe2 {[%clk 0:02:55.2]} 9... Nc6 {[%clk 0:02:59.3]} 10.
h3 {[%clk 0:02:45.5]} 10... Ne4 {[%clk 0:02:58.8]} 11. O-O-O {[%clk 0:02:40.7]}
11... a5 {[%clk 0:02:56.2]} 12. a4 {[%clk 0:02:18.2]} 12... Nb4 {[%clk 0:02:51]}
13. Rde1 {[%clk 0:01:53.6]} 13... Bd7 {[%clk 0:02:50.2]} 14. Nxe4 {[%clk
0:01:45.9]} 14... fxe4 {[%clk 0:02:50.1]} 15. Nd2 {[%clk 0:01:45]} 15... Qxe2
{[%clk 0:02:49.9]} 16. Rxe2 {[%clk 0:01:45.2]} 16... d5 {[%clk 0:02:50.5]} 17.
f3 {[%clk 0:01:42.7]} 17... b5 {[%clk 0:02:46.2]} 18. axb5 {[%clk 0:01:40.1]}
18... Bxb5 {[%clk 0:02:45.4]} 19. Rf2 {[%clk 0:01:35.6]} 19... a4 {[%clk
0:02:45.9]} 20. bxa4 {[%clk 0:01:31.2]} 20... Rxa4 {[%clk 0:02:45.4]} 21. f4
{[%clk 0:01:08.4]} 21... c5 {[%clk 0:02:44.9]} 22. dxc5 {[%clk 0:01:07.4]} 22...
Bxc5 {[%clk 0:02:45]} 23. Re1 {[%clk 0:01:04.8]} 23... Rc8 {[%clk 0:02:41]} 24.
Nb3 {[%clk 0:01:00.2]} 24... Bd6 {[%clk 0:02:36.4]} 25. Nd4 {[%clk 0:00:53.8]}
25... Nd3+ {[%clk 0:02:35.4]} 26. Kd2 {[%clk 0:00:48.3]} 26... Nxe1 {[%clk
0:02:25]} 27. Nxb5 {[%clk 0:00:42.3]} 27... Rxc2+ {[%clk 0:02:22.4]} 28. Kxe1
{[%clk 0:00:42.1]} 28... Rxf2 {[%clk 0:02:21.9]} 29. Kxf2 {[%clk 0:00:40.9]}
29... Bc5 {[%clk 0:02:21.9]} 30. Bd4 {[%clk 0:00:33.7]} 30... Ra2+ {[%clk
0:02:17.4]} 31. Kg1 {[%clk 0:00:33.9]} 31... Bb4 {[%clk 0:02:17.4]} 32. h4
{[%clk 0:00:23]} 32... Kf7 {[%clk 0:02:14.6]} 33. Bh3 {[%clk 0:00:23.2]} 33...
g6 {[%clk 0:02:14.2]} 34. Nc7 {[%clk 0:00:23.2]} 34... Bd6 {[%clk 0:02:04.2]}
35. Bxe6+ {[%clk 0:00:12.2]} 35... Ke7 {[%clk 0:01:59.8]} 36. Bxd5 {[%clk
0:00:12.6]} 36... Ra5 {[%clk 0:01:58.5]} 37. Bb6 {[%clk 0:00:01.8]} 37... Ra1+
{[%clk 0:01:57.8]} 38. Kg2 {[%clk 0:00:02]} 38... Rd1 {[%clk 0:01:53.7]} 39.
Bxe4 {[%clk 0:00:01.6]} 39... Rb1 {[%clk 0:01:51.9]} 40. Ba5 {[%clk 0:00:01.6]}
40... Rb2+ {[%clk 0:01:46.7]} 41. Kf3 {[%clk 0:00:01.9]} 41... Ra2 {[%clk
0:01:45.7]} 42. Nd5+ {[%clk 0:00:02.5]} 42... Ke6 {[%clk 0:01:45.4]} 43. Bc3
{[%clk 0:00:03.3]} 43... Ra3 {[%clk 0:01:45]} 44. Bd4 {[%clk 0:00:03.8]} 44...
h5 {[%clk 0:01:44.1]} 45. Nf6 {[%clk 0:00:04]} 45... Be7 {[%clk 0:01:43.4]} 46.
Nd5 {[%clk 0:00:04.3]} 46... Bd6 {[%clk 0:01:42.7]} 47. Nc3 {[%clk 0:00:04.9]}
47... Rb3 {[%clk 0:01:39]} 48. Nd5 {[%clk 0:00:04.5]} 48... Rb8 {[%clk
0:01:37.5]} 49. Nc3 {[%clk 0:00:05.1]} 49... Kf7 {[%clk 0:01:36.2]} 50. Bd5+
{[%clk 0:00:05.7]} 50... Ke7 {[%clk 0:01:35.4]} 51. Ne4 {[%clk 0:00:06.3]} 51...
Bb4 {[%clk 0:01:34.9]} 52. Bf6+ {[%clk 0:00:06.6]} 52... Kf8 {[%clk 0:01:33.8]}
53. Be5 {[%clk 0:00:07]} 53... Rc8 {[%clk 0:01:32.9]} 54. Nd6 {[%clk 0:00:06.9]}
54... Rc1 {[%clk 0:01:31.5]} 55. Be4 {[%clk 0:00:07.1]} 55... Ke7 {[%clk
0:01:29]} 56. Nb5 {[%clk 0:00:06.6]} 56... Kf7 {[%clk 0:01:26.6]} 57. Nd4 {[%clk
0:00:06.8]} 57... Bd2 {[%clk 0:01:25.1]} 58. Bd5+ {[%clk 0:00:07]} 58... Kf8
{[%clk 0:01:25.2]} 59. Ne6+ {[%clk 0:00:05.1]} 59... Ke7 {[%clk 0:01:25.2]} 60.
Bd4 {[%clk 0:00:05.6]} 60... Rf1+ {[%clk 0:01:22.2]} 61. Ke2 {[%clk 0:00:04.7]}
61... Rg1 {[%clk 0:01:22.4]} 62. Kxd2 {[%clk 0:00:05]} 62... Rxg3 {[%clk
0:01:23]} 63. Kd3 {[%clk 0:00:04.6]} 63... Rg4 {[%clk 0:01:23.3]} 64. Ke4 {[%clk
0:00:03.5]} 64... Rxh4 {[%clk 0:01:23.6]} 65. Ng5 {[%clk 0:00:04.3]} 65... Rg4
{[%clk 0:01:21.9]} 66. Bc5+ {[%clk 0:00:05]} 66... Kf6 {[%clk 0:01:20.6]} 67.
Bd4+ {[%clk 0:00:04.5]} 67... Ke7 {[%clk 0:01:20.7]} 68. Kf3 {[%clk 0:00:04.8]}
68... Rg1 {[%clk 0:01:20.5]} 69. e4 {[%clk 0:00:04.9]} 69... Rd1 {[%clk
0:01:20.4]} 70. Ke3 {[%clk 0:00:04.7]} 70... h4 {[%clk 0:01:20.5]} 71. e5 {[%clk
0:00:04.3]} 71... Re1+ {[%clk 0:01:18.8]} 72. Kd3 {[%clk 0:00:04.5]} 72... Rd1+
{[%clk 0:01:17.8]} 73. Ke4 {[%clk 0:00:05.1]} 73... Re1+ {[%clk 0:01:16.7]} 74.
Kd3 {[%clk 0:00:04.8]} 74... Rd1+ {[%clk 0:01:16.7]} 75. Ke3 {[%clk 0:00:04.9]}
75... Re1+ {[%clk 0:01:11.3]} 76. Kf2 {[%clk 0:00:05.1]} 76... Rd1 {[%clk
0:01:11.4]} 77. Bc5+ {[%clk 0:00:05.4]} 77... Ke8 {[%clk 0:01:11.1]} 78. Bc6+
{[%clk 0:00:05.6]} 78... Kd8 {[%clk 0:01:09.7]} 79. e6 {[%clk 0:00:06.1]} 79...
Rd2+ {[%clk 0:01:07.5]} 80. Ke3 {[%clk 0:00:06.6]} 80... Rd1 {[%clk 0:01:03.9]}
81. e7+ {[%clk 0:00:07.1]} 81... Kc7 {[%clk 0:01:04.4]} 82. e8=Q {[%clk
0:00:05.5]} 82... Re1+ {[%clk 0:01:04.9]} 83. Kf2 {[%clk 0:00:05.1]} 83... Rxe8
{[%clk 0:01:05.4]} 84. Bxe8 {[%clk 0:00:05.7]} 84... h3 {[%clk 0:01:05.2]} 85.
Bxg6 {[%clk 0:00:05.7]} 85... h2 {[%clk 0:01:05]} 86. Kg2 {[%clk 0:00:06.1]}
86... Kc6 {[%clk 0:01:05.8]} 87. Kxh2 {[%clk 0:00:06.2]} 87... Kxc5 {[%clk
0:01:06.3]} 88. f5 {[%clk 0:00:07]} 88... Kd6 {[%clk 0:01:07.2]} 89. f6 {[%clk
0:00:07.8]} 89... Kd7 {[%clk 0:01:07]} 90. f7 {[%clk 0:00:08.3]} 90... Ke7
{[%clk 0:01:07.5]} 91. Nh7 {[%clk 0:00:08.3]} 91... Ke6 {[%clk 0:01:07.2]} 92.
f8=Q {[%clk 0:00:09]} 92... Ke5 {[%clk 0:01:06.2]} 93. Qf5+ {[%clk 0:00:09.1]}
93... Kd4 {[%clk 0:01:06.1]} 94. Nf6 {[%clk 0:00:08.5]} 1-0

[Event "Early-Titled-Tuesday-Blitz-March-05-2024"]
[Site "Chess.com"]
[Date "2024.03.05"]
[Round "6"]
[White "Semetey"]
[Black "AttilaTurzo"]
[Result "1-0"]
[WhiteElo "2599"]
[BlackElo "2469"]
[TimeControl "180+1"]
[EndTime "9:10:53 PST"]
[Termination "Semetey won on time"]

1. e4 {[%clk 0:02:49.5]} 1... c5 {[%clk 0:03:00]} 2. Nf3 {[%clk 0:02:46.8]} 2...
d6 {[%clk 0:03:00.6]} 3. d4 {[%clk 0:02:46.6]} 3... cxd4 {[%clk 0:03:01.5]} 4.
Nxd4 {[%clk 0:02:46.4]} 4... Nf6 {[%clk 0:03:02.3]} 5. Nc3 {[%clk 0:02:46.6]}
5... a6 {[%clk 0:03:03.1]} 6. a3 {[%clk 0:02:46.5]} 6... e5 {[%clk 0:03:00.8]}
7. Nf3 {[%clk 0:02:45.9]} 7... h6 {[%clk 0:03:01.3]} 8. Bc4 {[%clk 0:02:43.8]}
8... Be7 {[%clk 0:03:01.1]} 9. O-O {[%clk 0:02:42.6]} 9... O-O {[%clk
0:03:00.3]} 10. h3 {[%clk 0:02:41.8]} 10... Be6 {[%clk 0:03:00.5]} 11. Bxe6
{[%clk 0:02:41]} 11... fxe6 {[%clk 0:03:00]} 12. Nh2 {[%clk 0:02:37.6]} 12...
Nc6 {[%clk 0:02:59.7]} 13. Ng4 {[%clk 0:02:37.6]} 13... Qe8 {[%clk 0:02:50.9]}
14. Nxf6+ {[%clk 0:02:31.2]} 14... Rxf6 {[%clk 0:02:50.2]} 15. Be3 {[%clk
0:02:31]} 15... Qg6 {[%clk 0:02:44.5]} 16. Qd3 {[%clk 0:02:21.8]} 16... Raf8
{[%clk 0:02:36.9]} 17. Rad1 {[%clk 0:02:21.4]} 17... Rf3 {[%clk 0:02:31.3]} 18.
Kh2 {[%clk 0:02:21.3]} 18... Qh5 {[%clk 0:02:23.2]} 19. Ne2 {[%clk 0:02:19.2]}
19... R3f7 {[%clk 0:02:13.8]} 20. Ng3 {[%clk 0:02:17.7]} 20... Qg6 {[%clk
0:02:13.4]} 21. Ne2 {[%clk 0:02:08.5]} 21... Kh8 {[%clk 0:02:11.8]} 22. f3
{[%clk 0:02:06.1]} 22... Rd8 {[%clk 0:02:06.8]} 23. c4 {[%clk 0:02:03.1]} 23...
Bg5 {[%clk 0:02:03.6]} 24. Bg1 {[%clk 0:01:45.9]} 24... Rfd7 {[%clk 0:02:02]}
25. Kh1 {[%clk 0:01:45.2]} 25... d5 {[%clk 0:01:56.1]} 26. exd5 {[%clk
0:01:34.3]} 26... Qxd3 {[%clk 0:01:53.8]} 27. Rxd3 {[%clk 0:01:35.2]} 27... exd5
{[%clk 0:01:54.4]} 28. Rfd1 {[%clk 0:01:32]} 28... d4 {[%clk 0:01:51.5]} 29. Ng3
{[%clk 0:01:30.8]} 29... a5 {[%clk 0:01:48.1]} 30. b3 {[%clk 0:01:28.7]} 30...
Be7 {[%clk 0:01:46.3]} 31. Ra1 {[%clk 0:01:25.5]} 31... Bc5 {[%clk 0:01:39.2]}
32. Ne4 {[%clk 0:01:25.4]} 32... b6 {[%clk 0:01:39.7]} 33. Bh2 {[%clk
0:01:24.7]} 33... Rb7 {[%clk 0:01:24.1]} 34. Bg3 {[%clk 0:01:18.2]} 34... Be7
{[%clk 0:01:23.5]} 35. Be1 {[%clk 0:01:11.5]} 35... b5 {[%clk 0:01:22.9]} 36. c5
{[%clk 0:01:11.1]} 36... Rd5 {[%clk 0:01:14]} 37. b4 {[%clk 0:01:10]} 37... Ra7
{[%clk 0:01:14]} 38. Rb1 {[%clk 0:00:55.3]} 38... axb4 {[%clk 0:01:12.1]} 39.
Bxb4 {[%clk 0:00:52.3]} 39... Rd8 {[%clk 0:01:02.1]} 40. Be1 {[%clk 0:00:46.3]}
40... Rda8 {[%clk 0:00:59.8]} 41. Rxb5 {[%clk 0:00:42.9]} 41... Rxa3 {[%clk
0:00:59.8]} 42. Rxa3 {[%clk 0:00:41.5]} 42... Rxa3 {[%clk 0:01:00.7]} 43. Kh2
{[%clk 0:00:39.9]} 43... d3 {[%clk 0:00:55.8]} 44. Rb6 {[%clk 0:00:37.5]} 44...
Nd4 {[%clk 0:00:53.8]} 45. c6 {[%clk 0:00:35.7]} 45... Ra7 {[%clk 0:00:49.1]}
46. Bc3 {[%clk 0:00:29.2]} 46... Rc7 {[%clk 0:00:38.9]} 47. Bxd4 {[%clk
0:00:28.3]} 47... exd4 {[%clk 0:00:39.8]} 48. Kg3 {[%clk 0:00:24.7]} 48... Kg8
{[%clk 0:00:25.6]} 49. Kf2 {[%clk 0:00:24.6]} 49... Kf7 {[%clk 0:00:25.8]} 50.
Ke1 {[%clk 0:00:24.8]} 50... Ke6 {[%clk 0:00:24.6]} 51. Kd2 {[%clk 0:00:24.9]}
51... Kd5 {[%clk 0:00:25]} 52. Kxd3 {[%clk 0:00:25.2]} 52... Rxc6 {[%clk
0:00:24.2]} 53. Rxc6 {[%clk 0:00:25.2]} 53... Kxc6 {[%clk 0:00:24.1]} 54. Kxd4
{[%clk 0:00:25.8]} 54... Kd7 {[%clk 0:00:24.5]} 55. Ke5 {[%clk 0:00:25.6]} 55...
Ke8 {[%clk 0:00:20.2]} 56. Ke6 {[%clk 0:00:25]} 56... Kf8 {[%clk 0:00:20.6]} 57.
Nd6 {[%clk 0:00:23.5]} 57... Bf6 {[%clk 0:00:19.1]} 58. Nf5 {[%clk 0:00:22.5]}
58... Kg8 {[%clk 0:00:17.7]} 59. Nxh6+ {[%clk 0:00:22.5]} 59... Kh7 {[%clk
0:00:16.7]} 60. Ng4 {[%clk 0:00:22.1]} 60... Bg5 {[%clk 0:00:16.2]} 61. Kf5
{[%clk 0:00:19.1]} 61... Bd2 {[%clk 0:00:15.7]} 62. f4 {[%clk 0:00:19.3]} 62...
g6+ {[%clk 0:00:14.3]} 63. Ke4 {[%clk 0:00:19.3]} 63... Kg7 {[%clk 0:00:14.7]}
64. Ne5 {[%clk 0:00:18.9]} 64... Kf6 {[%clk 0:00:14.3]} 65. Nf3 {[%clk
0:00:18.6]} 65... Bc1 {[%clk 0:00:14.8]} 66. Nd4 {[%clk 0:00:18.3]} 66... Bd2
{[%clk 0:00:13.9]} 67. f5 {[%clk 0:00:17.9]} 67... gxf5+ {[%clk 0:00:09.4]} 68.
Nxf5 {[%clk 0:00:18.8]} 68... Bc1 {[%clk 0:00:09.3]} 69. g4 {[%clk 0:00:17.4]}
69... Kg5 {[%clk 0:00:09.5]} 70. Kf3 {[%clk 0:00:17.4]} 70... Bd2 {[%clk
0:00:08.4]} 71. h4+ {[%clk 0:00:17.6]} 71... Kg6 {[%clk 0:00:08]} 72. Ng3 {[%clk
0:00:16.6]} 72... Be1 {[%clk 0:00:07.7]} 73. h5+ {[%clk 0:00:16.5]} 73... Kg5
{[%clk 0:00:07]} 74. Ne4+ {[%clk 0:00:16.6]} 74... Kh6 {[%clk 0:00:07.4]} 75.
Kf4 {[%clk 0:00:16.7]} 75... Ba5 {[%clk 0:00:06.7]} 76. Kf5 {[%clk 0:00:17.6]}
76... Bd8 {[%clk 0:00:06.1]} 77. Nf6 {[%clk 0:00:17.5]} 77... Bc7 {[%clk
0:00:04.5]} 78. g5+ {[%clk 0:00:17.5]} 78... Kg7 {[%clk 0:00:04.4]} 79. h6+
{[%clk 0:00:17.9]} 79... Kh8 {[%clk 0:00:03.7]} 80. g6 {[%clk 0:00:18.3]} 1-0

[Event "Early-Titled-Tuesday-Blitz-March-05-2024"]
[Site "Chess.com"]
[Date "2024.03.05"]
[Round "6"]
[White "chess_blitz00"]
[Black "ansko1999"]
[Result "1-0"]
[WhiteElo "2543"]
[BlackElo "2711"]
[TimeControl "180+1"]
[EndTime "9:10:56 PST"]
[Termination "chess_blitz00 won by checkmate"]

1. d4 {[%clk 0:02:56.4]} 1... d5 {[%clk 0:02:56.6]} 2. Nf3 {[%clk 0:02:55.9]}
2... c6 {[%clk 0:02:55.7]} 3. b3 {[%clk 0:02:54.4]} 3... Bf5 {[%clk 0:02:51.5]}
4. Bb2 {[%clk 0:02:54.5]} 4... e6 {[%clk 0:02:51.8]} 5. e3 {[%clk 0:02:48.1]}
5... Nf6 {[%clk 0:02:47]} 6. Be2 {[%clk 0:02:31.4]} 6... h6 {[%clk 0:02:46.1]}
7. O-O {[%clk 0:02:29.7]} 7... Nbd7 {[%clk 0:02:44.9]} 8. Nbd2 {[%clk
0:02:25.2]} 8... Bd6 {[%clk 0:02:43.8]} 9. Ne5 {[%clk 0:02:24.1]} 9... O-O
{[%clk 0:02:38.6]} 10. f4 {[%clk 0:02:23.2]} 10... Ne4 {[%clk 0:02:32.3]} 11.
Nxe4 {[%clk 0:02:21.5]} 11... Bxe4 {[%clk 0:02:33.2]} 12. Bd3 {[%clk 0:02:17.2]}
12... Bxd3 {[%clk 0:02:29.1]} 13. cxd3 {[%clk 0:02:17.1]} 13... Qe8 {[%clk
0:02:21.7]} 14. Rf3 {[%clk 0:02:09.3]} 14... f6 {[%clk 0:02:15.8]} 15. Nxd7
{[%clk 0:02:07.4]} 15... Qxd7 {[%clk 0:02:16.7]} 16. Rg3 {[%clk 0:01:59]} 16...
a5 {[%clk 0:01:55.9]} 17. Qh5 {[%clk 0:01:52.4]} 17... Kh8 {[%clk 0:01:50.2]}
18. a3 {[%clk 0:01:34.9]} 18... Qf7 {[%clk 0:01:46]} 19. Qh3 {[%clk 0:01:06.7]}
19... f5 {[%clk 0:01:38.1]} 20. Kh1 {[%clk 0:00:52.3]} 20... Ra6 {[%clk
0:01:33]} 21. Bc3 {[%clk 0:00:45.6]} 21... Rb6 {[%clk 0:01:29]} 22. Rb1 {[%clk
0:00:45.2]} 22... Bxa3 {[%clk 0:01:20.4]} 23. Bxa5 {[%clk 0:00:44.6]} 23... Ra6
{[%clk 0:01:19.8]} 24. Bc3 {[%clk 0:00:25.9]} 24... Be7 {[%clk 0:01:15.2]} 25.
Rf3 {[%clk 0:00:24.2]} 25... Qg6 {[%clk 0:01:04.9]} 26. Rg3 {[%clk 0:00:20.1]}
26... Qf7 {[%clk 0:01:04.2]} 27. Rf3 {[%clk 0:00:20.5]} 27... Ra2 {[%clk
0:01:02.5]} 28. Qg3 {[%clk 0:00:18.2]} 28... Rfa8 {[%clk 0:00:54.5]} 29. Rf2
{[%clk 0:00:17.9]} 29... Qh5 {[%clk 0:00:48.5]} 30. Rxa2 {[%clk 0:00:12]} 30...
Rxa2 {[%clk 0:00:49.4]} 31. Qe1 {[%clk 0:00:06.2]} 31... Bh4 {[%clk 0:00:43.6]}
32. Qd1 {[%clk 0:00:04.5]} 32... Qxd1+ {[%clk 0:00:40.8]} 33. Rxd1 {[%clk
0:00:05.4]} 33... Bf2 {[%clk 0:00:36.9]} 34. Rd2 {[%clk 0:00:03.7]} 34... Rxd2
{[%clk 0:00:19.2]} 35. Bxd2 {[%clk 0:00:04.6]} 35... Bh4 {[%clk 0:00:19.6]} 36.
Bb4 {[%clk 0:00:04.7]} 36... Kg8 {[%clk 0:00:19.3]} 37. g3 {[%clk 0:00:04.8]}
37... Bd8 {[%clk 0:00:18.4]} 38. Bd6 {[%clk 0:00:05.2]} 38... Kf7 {[%clk
0:00:18.7]} 39. Kg2 {[%clk 0:00:05.5]} 39... Be7 {[%clk 0:00:16.8]} 40. Be5
{[%clk 0:00:04.7]} 40... g5 {[%clk 0:00:13.8]} 41. h3 {[%clk 0:00:03.8]} 41...
Kg6 {[%clk 0:00:13.4]} 42. Kf3 {[%clk 0:00:04.1]} 42... h5 {[%clk 0:00:11.1]}
43. g4 {[%clk 0:00:04.2]} 43... hxg4+ {[%clk 0:00:07.7]} 44. hxg4 {[%clk
0:00:05.1]} 44... Bd8 {[%clk 0:00:07.9]} 45. gxf5+ {[%clk 0:00:05.1]} 45... exf5
{[%clk 0:00:08.1]} 46. fxg5 {[%clk 0:00:05.5]} 46... Bxg5 {[%clk 0:00:08.3]} 47.
Bf4 {[%clk 0:00:04.9]} 47... Bh4 {[%clk 0:00:06.8]} 48. Be5 {[%clk 0:00:03.9]}
48... Be1 {[%clk 0:00:06.1]} 49. Bd6 {[%clk 0:00:03.9]} 49... Bd2 {[%clk
0:00:05.8]} 50. Bc5 {[%clk 0:00:04.4]} 50... Be1 {[%clk 0:00:05.8]} 51. Bb6
{[%clk 0:00:04.7]} 51... Kf6 {[%clk 0:00:05.7]} 52. Bc5 {[%clk 0:00:04.9]} 52...
Ke6 {[%clk 0:00:05.9]} 53. Ke2 {[%clk 0:00:04.6]} 53... Ba5 {[%clk 0:00:06.2]}
54. Kf3 {[%clk 0:00:04]} 54... Bc7 {[%clk 0:00:06.6]} 55. e4 {[%clk 0:00:03.9]}
55... fxe4+ {[%clk 0:00:05.9]} 56. dxe4 {[%clk 0:00:04.5]} 56... dxe4+ {[%clk
0:00:04.4]} 57. Kxe4 {[%clk 0:00:05.4]} 57... Bb8 {[%clk 0:00:03.9]} 58. Bb6
{[%clk 0:00:03.3]} 58... Bd6 {[%clk 0:00:04.2]} 59. Bc5 {[%clk 0:00:03.6]} 59...
Bg3 {[%clk 0:00:04]} 60. Bb6 {[%clk 0:00:03.6]} 60... Bh2 {[%clk 0:00:04]} 61.
Bc5 {[%clk 0:00:04.1]} 61... b5 {[%clk 0:00:03.5]} 62. Bb6 {[%clk 0:00:03.8]}
62... Bd6 {[%clk 0:00:03.7]} 63. Bc5 {[%clk 0:00:04.2]} 63... Bxc5 {[%clk
0:00:02.7]} 64. dxc5 {[%clk 0:00:05.1]} 64... Kf6 {[%clk 0:00:02.2]} 65. Kf4
{[%clk 0:00:03.7]} 65... Ke6 {[%clk 0:00:02.3]} 66. Ke4 {[%clk 0:00:01.6]} 66...
Kf6 {[%clk 0:00:02.6]} 67. b4 {[%clk 0:00:01.9]} 67... Ke6 {[%clk 0:00:02.9]}
68. Kf4 {[%clk 0:00:02.1]} 68... Kd5 {[%clk 0:00:03.2]} 69. Kf5 {[%clk
0:00:02.8]} 69... Kc4 {[%clk 0:00:03.3]} 70. Ke6 {[%clk 0:00:03.7]} 70... Kxb4
{[%clk 0:00:04]} 71. Kd6 {[%clk 0:00:04.6]} 71... Kc4 {[%clk 0:00:03.9]} 72.
Kxc6 {[%clk 0:00:05.5]} 72... b4 {[%clk 0:00:04.6]} 73. Kd6 {[%clk 0:00:06]}
73... b3 {[%clk 0:00:04.4]} 74. c6 {[%clk 0:00:06.9]} 74... b2 {[%clk
0:00:05.2]} 75. c7 {[%clk 0:00:07.8]} 75... b1=Q {[%clk 0:00:05.7]} 76. c8=Q+
{[%clk 0:00:08.7]} 76... Kd3 {[%clk 0:00:04.4]} 77. Qf5+ {[%clk 0:00:08.9]}
77... Kd2 {[%clk 0:00:04.6]} 78. Qxb1 {[%clk 0:00:09.8]} 78... Kc3 {[%clk
0:00:04.8]} 79. Qc1+ {[%clk 0:00:10.1]} 79... Kd4 {[%clk 0:00:05.7]} 80. Qf4+
{[%clk 0:00:10.2]} 80... Kd3 {[%clk 0:00:06.2]} 81. Kd5 {[%clk 0:00:10.5]} 81...
Ke2 {[%clk 0:00:06.7]} 82. Qg3 {[%clk 0:00:10.7]} 82... Kd2 {[%clk 0:00:06.3]}
83. Qf3 {[%clk 0:00:10.8]} 83... Kc2 {[%clk 0:00:06]} 84. Qe3 {[%clk 0:00:11.2]}
84... Kb2 {[%clk 0:00:06.5]} 85. Qd3 {[%clk 0:00:11.3]} 85... Kc1 {[%clk
0:00:06.6]} 86. Qe2 {[%clk 0:00:11.4]} 86... Kb1 {[%clk 0:00:06.9]} 87. Kc4
{[%clk 0:00:12.3]} 87... Ka1 {[%clk 0:00:07.5]} 88. Kc3 {[%clk 0:00:13.2]} 88...
Kb1 {[%clk 0:00:08]} 89. Qb2# {[%clk 0:00:13.9]} 1-0